bitfinex/quotes_BTCUSD_20210402
["timestamp","ask_amount","ask_price","bid_price","bid_amount"]
[1617382493811,0.01620219,59212.0,59211.0,1.03803724]
[1617382494026,0.01620219,59212.0,59211.0,0.1]
[1617382494228,0.68585219,59212.0,59211.0,1.03803724]
[1617382495118,0.68585219,59212.0,59211.0,1.33603724]
[1617382495507,0.68585219,59212.0,59211.0,2.98603724]
[1617382495710,0.68585219,59212.0,59211.0,1.33603724]
[1617382496106,0.70585219,59212.0,59211.0,1.33603724]
[1617382496504,0.70585219,59212.0,59211.0,1.20103724]
[1617382497507,0.70585219,59212.0,59211.0,0.763]
[1617382497909,0.70585219,59212.0,59211.0,0.6]
[1617382498311,0.70585219,59212.0,59211.0,0.5]
[1617382498514,0.85085219,59212.0,59211.0,0.5]
[1617382498716,0.85085219,59212.0,59208.0,0.00064]
[1617382498717,1.52159191,59212.0,59208.0,0.00064]
[1617382498906,0.64603772,59211.0,59208.0,0.00064]
[1617382499112,0.935,59210.0,59208.0,0.00064]
[1617382499310,4.16603772,59209.0,59208.0,0.00064]
[1617382499508,5.576988,59209.0,59208.0,0.00064]
[1617382499710,2.056988,59209.0,59208.0,0.00064]
[1617382500106,1.056988,59209.0,59208.0,0.00064]
[1617382500310,1.051988,59209.0,59208.0,0.00064]
[1617382500507,4.571988,59209.0,59208.0,0.00064]
[1617382500708,4.57176813,59209.0,59208.0,0.00064]
[1617382500906,5.46176813,59209.0,59208.0,0.00064]
[1617382501910,5.77424642,59209.0,59208.0,0.00064]
[1617382502509,5.85241137,59209.0,59208.0,0.00064]
[1617382502710,5.79044861,59209.0,59208.0,0.00064]
[1617382503111,5.79129308,59209.0,59208.0,0.00064]
[1617382503914,5.85325584,59209.0,59208.0,0.00064]
[1617382504110,5.79129308,59209.0,59208.0,0.00064]
[1617382504727,5.81129308,59209.0,59208.0,0.00064]
[1617382505732,5.81129308,59209.0,59206.0,0.000239]
[1617382505733,2.02,59208.0,59206.0,0.000239]
[1617382505932,3.12,59207.0,59206.0,0.000239]
[1617382506130,1.66965,59207.0,59206.0,0.000239]
[1617382506332,0.66965,59207.0,59206.0,0.000239]
[1617382506732,1.057014,59207.0,59206.0,0.000239]
[1617382506931,1.07321619,59207.0,59206.0,0.000239]
[1617382507363,1.38321619,59207.0,59206.0,0.000239]
[1617382507963,0.99585219,59207.0,59206.0,0.000239]
[1617382508164,1.38321619,59207.0,59206.0,0.000239]
[1617382508363,1.38406069,59207.0,59206.0,0.000239]
[1617382508566,1.44602345,59207.0,59206.0,0.000239]
[1617382509168,1.46529074,59207.0,59206.0,0.000239]
[1617382509565,4.98529074,59207.0,59206.0,0.000239]
[1617382510248,5.10885736,59207.0,59206.0,0.000239]
[1617382511446,5.19856764,59207.0,59206.0,0.000239]
[1617382513650,3.58196276,59206.0,59203.0,0.19849196]
[1617382513851,0.20479667,59205.0,59203.0,0.19849196]
[1617382514051,3.96932676,59204.0,59203.0,0.19849196]
[1617382514253,4.7310138,59204.0,59203.0,0.19849196]
[1617382514455,4.57478267,59204.0,59203.0,0.19849196]
[1617382514653,5.72645571,59204.0,59203.0,0.19849196]
[1617382514852,5.86928962,59204.0,59203.0,0.19849196]
[1617382515052,6.06073786,59204.0,59203.0,0.19849196]
[1617382515257,6.08000687,59204.0,59203.0,0.19849196]
[1617382515454,6.08000687,59204.0,59203.0,0.18849196]
[1617382516052,6.09620906,59204.0,59203.0,0.18849196]
[1617382516253,6.09120906,59204.0,59203.0,0.18849196]
[1617382516457,2.57120906,59204.0,59203.0,0.18849196]
[1617382516665,0.91839638,59204.0,59203.0,0.43749196]
[1617382516861,0.93839638,59204.0,59203.0,0.43749196]
[1617382517064,0.93839638,59204.0,59203.0,0.86708956]
[1617382517259,0.8486861,59204.0,59203.0,1.40946056]
[1617382517460,0.8486861,59204.0,59203.0,1.45251296]
[1617382517661,0.86797387,59204.0,59203.0,1.20351296]
[1617382518061,0.86797387,59204.0,59203.0,1.33251296]
[1617382518260,0.86797387,59204.0,59203.0,1.03251296]
[1617382518460,0.86797387,59204.0,59203.0,1.19910151]
[1617382519259,0.86881841,59204.0,59203.0,1.19910151]
[1617382519461,0.7259845,59204.0,59203.0,1.19910151]
[1617382519864,0.70669673,59204.0,59203.0,1.19910151]
[1617382520063,0.70669673,59204.0,59203.0,0.95010151]
[1617382520293,0.72598679,59204.0,59203.0,0.28849196]
[1617382520686,0.72598679,59204.0,59203.0,0.18849196]
[1617382520887,0.86169673,59204.0,59203.0,0.18849196]
[1617382521290,3.78906773,59204.0,59203.0,0.20849196]
[1617382522487,1.24906773,59204.0,59203.0,0.20849196]
[1617382523117,1.50245973,59204.0,59132.0,0.12851777]
[1617382523521,0.00096355,59195.0,59189.0,0.387371]
[1617382523719,0.00096355,59195.0,59190.0,0.01]
[1617382523720,0.67061355,59195.0,59190.0,0.01]
[1617382523914,2.67,59194.0,59187.0,0.143]
[1617382524115,3.49,59193.0,59187.0,0.255379]
[1617382524313,0.81413564,59193.0,59187.0,1.19341624]
[1617382524514,0.81413564,59193.0,59189.0,0.387371]
[1617382524715,0.03867681,59190.0,59189.0,0.564371]
[1617382524914,0.70832681,59190.0,59189.0,0.177]
[1617382525189,0.85277366,59190.0,59189.0,0.002]
[1617382525784,0.99560757,59190.0,59189.0,0.002]
[1617382526778,0.85277366,59190.0,59189.0,0.002]
[1617382527177,0.86397585,59190.0,59189.0,0.002]
[1617382528179,0.82529904,59190.0,59189.0,0.002]
[1617382529386,0.86396252,59190.0,59189.0,0.002]
[1617382529980,0.86480726,59190.0,59189.0,0.002]
[1617382530187,1.95480726,59190.0,59189.0,0.002]
[1617382530386,1.16480726,59190.0,59189.0,0.002]
[1617382530584,1.00764117,59190.0,59189.0,0.002]
[1617382531194,1.02764117,59190.0,59189.0,0.002]
[1617382531396,0.98897769,59190.0,59189.0,0.002]
[1617382531594,1.04114378,59190.0,59189.0,0.002]
[1617382532605,1.24280878,59190.0,59189.0,0.002]
[1617382532809,1.59151478,59190.0,59189.0,0.002]
[1617382533004,1.42851478,59190.0,59178.0,0.00086]
[1617382533200,1.42851478,59190.0,59178.0,0.00286]
[1617382533201,0.006,59187.0,59178.0,0.00286]
[1617382533621,0.05789514,59184.0,59178.0,0.00286]
[1617382533817,0.72754514,59184.0,59178.0,0.00286]
[1617382534020,0.253449,59182.0,59171.0,0.00084]
[1617382534216,0.253449,59182.0,59166.0,0.10216286]
[1617382534426,0.253449,59182.0,59169.0,0.002]
[1617382534427,0.006,59179.0,59169.0,0.002]
[1617382534620,0.006,59179.0,59169.0,0.94203724]
[1617382534820,0.05786151,59172.0,59169.0,0.94203724]
[1617382535016,0.05786151,59172.0,59169.0,0.002]
[1617382535218,0.05786151,59172.0,59166.0,0.0476507]
[1617382535219,2.2,59171.0,59166.0,0.0476507]
[1617382535420,0.245,59170.0,59166.0,0.98268794]
[1617382535616,0.245,59170.0,59168.0,0.1]
[1617382535817,0.14589615,59169.0,59168.0,1.03803724]
[1617382536046,0.81554615,59169.0,59168.0,0.102]
[1617382536246,0.81554615,59169.0,59168.0,0.002]
[1617382536444,0.99054615,59169.0,59168.0,0.002]
[1617382536844,0.84465,59169.0,59166.0,0.0426507]
[1617382537044,0.84465,59169.0,59167.0,0.93803724]
[1617382537248,0.68085219,59169.0,59168.0,0.387371]
[1617382537444,0.68085219,59169.0,59168.0,0.389371]
[1617382537645,0.68085219,59169.0,59168.0,0.002]
[1617382538865,0.83585219,59169.0,59168.0,0.002]
[1617382539469,0.67085219,59169.0,59168.0,0.002]
[1617382540325,0.67085219,59169.0,59168.0,0.94003724]
[1617382540525,0.67085219,59169.0,59168.0,1.32740824]
[1617382540922,0.67085219,59169.0,59168.0,1.53240824]
[1617382540923,0.67169723,59169.0,59168.0,1.53240824]
[1617382541124,0.67169723,59169.0,59168.0,0.594371]
[1617382541324,0.67169723,59169.0,59168.0,0.389371]
[1617382541922,0.69169723,59169.0,59168.0,0.389371]
[1617382542126,0.69169723,59169.0,59168.0,0.002]
[1617382542923,1.56169723,59169.0,59168.0,0.002]
[1617382543124,0.69169723,59169.0,59168.0,0.002]
[1617382544327,1.07906823,59169.0,59168.0,0.002]
[1617382544525,0.95669723,59169.0,59168.0,0.002]
[1617382544725,0.69169723,59169.0,59168.0,0.002]
[1617382545126,1.00398741,59169.0,59168.0,0.002]
[1617382545528,0.69169723,59169.0,59168.0,0.002]
[1617382546130,1.39135841,59169.0,59168.0,0.002]
[1617382546742,1.70135841,59169.0,59168.0,0.002]
[1617382547948,5.21919841,59169.0,59168.0,0.002]
[1617382548153,5.47271241,59169.0,59168.0,0.002]
[1617382548550,0.387371,59168.0,59166.0,0.0426507]
[1617382548750,0.38605515,59168.0,59166.0,0.0446507]
[1617382548945,2.04570515,59168.0,59166.0,0.0426507]
[1617382549167,3.91857319,59167.0,59166.0,0.0426507]
[1617382549367,4.57822319,59167.0,59166.0,0.0426507]
[1617382549565,5.57822319,59167.0,59166.0,0.0426507]
[1617382550773,5.91629219,59167.0,59166.0,0.0426507]
[1617382551365,5.91713726,59167.0,59166.0,0.0426507]
[1617382553012,5.91713726,59167.0,59166.0,0.0376507]
[1617382553211,5.91713726,59167.0,59166.0,0.0326507]
[1617382553612,5.91213726,59167.0,59166.0,0.0326507]
[1617382555659,2.39213726,59167.0,59166.0,0.0326507]
[1617382556661,2.54513726,59167.0,59166.0,0.0326507]
[1617382556862,5.01213726,59167.0,59166.0,0.0326507]
[1617382557070,5.05213726,59167.0,59166.0,0.0326507]
[1617382557266,5.00713726,59167.0,59166.0,0.0326507]
[1617382557665,5.0648922,59167.0,59166.0,0.0326507]
[1617382558062,4.7268232,59167.0,59166.0,0.0326507]
[1617382558270,4.9668232,59167.0,59166.0,0.0276507]
[1617382558468,2.30261326,59167.0,59166.0,0.0276507]
[1617382560285,2.32261326,59167.0,59166.0,0.0276507]
[1617382560488,2.31761326,59167.0,59166.0,0.0276507]
[1617382560883,3.39761326,59167.0,59166.0,0.0276507]
[1617382561486,2.31761326,59167.0,59166.0,0.0276507]
[1617382561690,1.68049507,59167.0,59166.0,0.0276507]
[1617382562494,1.67299507,59167.0,59166.0,0.1936507]
[1617382562891,1.67299507,59167.0,59166.0,0.2936507]
[1617382563094,1.69803427,59167.0,59166.0,0.41288925]
[1617382563290,1.67299507,59167.0,59166.0,0.41288925]
[1617382563690,1.67299507,59167.0,59166.0,0.2936507]
[1617382564292,1.69803969,59167.0,59166.0,0.2936507]
[1617382564916,1.69803969,59167.0,59166.0,0.5936507]
[1617382565315,0.69803969,59167.0,59166.0,0.5936507]
[1617382566314,0.69803969,59167.0,59166.0,0.5886507]
[1617382566517,0.69803969,59167.0,59166.0,1.4406507]
[1617382566718,0.67299507,59167.0,59166.0,1.4406507]
[1617382567120,0.67299507,59167.0,59166.0,1.7156507]
[1617382568346,0.67039203,59167.0,59166.0,1.7156507]
[1617382568946,0.66539203,59167.0,59166.0,1.7156507]
[1617382569150,0.66539203,59167.0,59166.0,3.04113694]
[1617382569547,0.66539203,59167.0,59166.0,2.1030997]
[1617382569750,0.66539203,59167.0,59166.0,2.0030997]
[1617382570813,0.66539203,59167.0,59166.0,2.94113694]
[1617382571017,0.66539203,59167.0,59166.0,3.04113694]
[1617382571228,0.66539203,59167.0,59166.0,3.81037549]
[1617382571425,0.09703636,59167.0,59166.0,7.33037549]
[1617382571626,4.021804,59170.0,59166.0,6.60341549]
[1617382571824,4.021804,59170.0,59169.0,6.10538814]
[1617382572019,4.52894003,59170.0,59169.0,8.34884814]
[1617382572225,4.52894003,59170.0,59169.0,9.02142569]
[1617382572226,4.02230703,59170.0,59169.0,9.02142569]
[1617382572421,3.51572434,59170.0,59169.0,8.73308669]
[1617382572615,3.00915011,59170.0,59169.0,8.55642634]
[1617382572819,2.84029211,59170.0,59169.0,8.55642634]
[1617382573019,2.33371788,59170.0,59169.0,9.10659158]
[1617382573223,1.9968469,59170.0,59169.0,10.50959158]
[1617382573420,1.1979469,59170.0,59169.0,10.94953532]
[1617382573622,1.0658569,59170.0,59169.0,11.83953532]
[1617382574022,1.0658569,59170.0,59169.0,11.78348018]
[1617382574225,0.02501399,59186.0,59176.0,0.126641]
[1617382574424,0.02501399,59186.0,59185.0,3.685]
[1617382574625,0.02501885,59187.0,59185.0,4.54157055]
[1617382574824,0.02501885,59187.0,59186.0,4.98576293]
[1617382575024,0.70083885,59187.0,59186.0,2.55472569]
[1617382575219,0.70083885,59187.0,59186.0,3.69576293]
[1617382575628,0.67582,59187.0,59186.0,4.87905693]
[1617382576028,0.67082,59187.0,59186.0,4.87905693]
[1617382576227,0.67082,59187.0,59186.0,4.92905693]
[1617382576429,0.67082,59187.0,59186.0,3.94905693]
[1617382576633,0.67082,59187.0,59186.0,4.61905693]
[1617382576829,0.67082,59187.0,59186.0,3.94905693]
[1617382578047,0.66082,59187.0,59186.0,7.46905693]
[1617382578248,0.66082,59187.0,59186.0,7.46405693]
[1617382578655,0.66082,59187.0,59186.0,7.51405693]
[1617382578858,0.51626293,59187.0,59186.0,7.51405693]
[1617382579050,0.47276293,59187.0,59186.0,7.86922217]
[1617382579250,0.29965202,59187.0,59186.0,7.86922217]
[1617382579454,20.005,59200.0,59193.0,0.253228]
[1617382579664,20.005,59200.0,59199.0,5.10819352]
[1617382579861,19.97125345,59200.0,59199.0,7.5072845]
[1617382580059,18.89528041,59200.0,59199.0,7.4572845]
[1617382580255,18.04360038,59200.0,59199.0,9.3322845]
[1617382580456,18.04360038,59200.0,59199.0,10.8322845]
[1617382580680,18.04360038,59200.0,59199.0,10.71839164]
[1617382581082,18.04360038,59200.0,59199.0,11.47161964]
[1617382581476,18.04360038,59200.0,59199.0,10.51161964]
[1617382582280,18.04360038,59200.0,59199.0,10.54161964]
[1617382582478,18.04360038,59200.0,59199.0,10.79161964]
[1617382582683,18.04360038,59200.0,59199.0,10.47161964]
[1617382583307,18.04360038,59200.0,59199.0,8.97161964]
[1617382583506,18.04360038,59200.0,59199.0,9.01161964]
[1617382583904,18.04444498,59200.0,59199.0,12.49161964]
[1617382584105,18.72012498,59200.0,59199.0,12.74161964]
[1617382584305,18.71486939,59200.0,59199.0,12.78161964]
[1617382584506,18.70706863,59200.0,59199.0,12.74161964]
[1617382584710,18.70706863,59200.0,59199.0,12.45161964]
[1617382585109,18.70706863,59200.0,59199.0,12.71361964]
[1617382585387,18.70706863,59200.0,59199.0,12.71561964]
[1617382585587,18.70706863,59200.0,59199.0,12.64450964]
[1617382585987,18.70206863,59200.0,59199.0,12.14450964]
[1617382586188,18.70206863,59200.0,59199.0,12.64072488]
[1617382586388,18.70206863,59200.0,59199.0,12.28555964]
[1617382586585,18.70206863,59200.0,59199.0,12.1756159]
[1617382586787,18.70206863,59200.0,59199.0,12.57555964]
[1617382586986,18.70206863,59200.0,59199.0,12.1756159]
[1617382587587,18.70206863,59200.0,59199.0,12.43450964]
[1617382587991,18.70206863,59200.0,59199.0,12.0345659]
[1617382588590,18.65097835,59200.0,59199.0,12.0345659]
[1617382588789,18.65097835,59200.0,59199.0,12.43450964]
[1617382590195,18.65097835,59200.0,59199.0,12.91633964]
[1617382590593,18.65097835,59200.0,59199.0,12.64603898]
[1617382590795,15.04231807,59200.0,59199.0,11.69800174]
[1617382590997,15.0402737,59200.0,59199.0,12.28603898]
[1617382591193,15.0402737,59200.0,59199.0,11.53746524]
[1617382591393,15.0402737,59200.0,59199.0,11.93740898]
[1617382591595,15.0402737,59200.0,59199.0,11.58746524]
[1617382591992,15.0402737,59200.0,59199.0,11.94463048]
[1617382592192,15.0402737,59200.0,59199.0,11.58946524]
[1617382592398,15.0402737,59200.0,59199.0,12.48940898]
[1617382592598,15.0402737,59200.0,59199.0,12.78940898]
[1617382592997,15.0402737,59200.0,59199.0,13.43457422]
[1617382593199,15.0402737,59200.0,59199.0,13.10940898]
[1617382593812,15.01365029,59200.0,59199.0,13.10940898]
[1617382594214,15.01165029,59200.0,59199.0,13.03940898]
[1617382594415,15.01165029,59200.0,59199.0,12.65420898]
[1617382594619,15.01165029,59200.0,59199.0,13.00937422]
[1617382594812,15.84149559,59200.0,59199.0,13.00937422]
[1617382595222,15.84149559,59200.0,59199.0,11.02417174]
[1617382595422,15.84149559,59200.0,59199.0,6.604228]
[1617382595620,15.84149559,59200.0,59199.0,5.552228]
[1617382595825,15.84149559,59200.0,59199.0,5.088228]
[1617382597846,15.80649559,59200.0,59199.0,5.088228]
[1617382598051,15.80254059,59200.0,59199.0,5.088228]
[1617382598444,15.80254059,59200.0,59199.0,5.428228]
[1617382599066,15.72754059,59200.0,59199.0,5.428228]
[1617382600268,15.72754059,59200.0,59199.0,1.908228]
[1617382600514,15.72754059,59200.0,59199.0,1.655]
[1617382600714,15.72754059,59200.0,59199.0,0.49]
[1617382601909,15.72754059,59200.0,59199.0,0.3]
[1617382602114,15.72754059,59200.0,59191.0,0.1]
[1617382602321,0.0058,59197.0,59191.0,0.435]
[1617382602521,0.00096147,59195.0,59190.0,0.8]
[1617382602722,0.00096112,59192.0,59190.0,0.5]
[1617382602921,0.06196276,59191.0,59190.0,0.5]
[1617382603118,0.45341176,59191.0,59178.0,0.4639]
[1617382603323,0.006,59187.0,59176.0,0.3]
[1617382603524,0.00496024,59184.0,59176.0,0.3]
[1617382603918,0.67968,59184.0,59176.0,0.3]
[1617382604114,0.67968,59184.0,59171.0,0.0226507]
[1617382604325,0.67968,59184.0,59171.0,0.0196507]
[1617382604526,0.006,59181.0,59171.0,0.0196507]
[1617382604727,0.006,59181.0,59174.0,0.253379]
[1617382604728,0.67568,59181.0,59174.0,0.253379]
[1617382604926,0.67568,59181.0,59175.0,0.387449]
[1617382605124,0.0048,59180.0,59179.0,0.189772]
[1617382605323,0.67568,59180.0,59179.0,0.189772]
[1617382605523,0.6765249,59180.0,59179.0,0.189772]
[1617382605728,0.6765249,59180.0,59172.0,0.165]
[1617382605929,1.0112449,59180.0,59172.0,0.165]
[1617382606125,1.0112449,59180.0,59173.0,0.195]
[1617382606332,1.0112449,59180.0,59171.0,0.0176507]
[1617382606527,1.0112449,59180.0,59171.0,0.0196507]
[1617382606731,1.0112449,59180.0,59175.0,0.387449]
[1617382606943,0.6765249,59180.0,59179.0,0.189772]
[1617382607146,0.67082398,59180.0,59179.0,0.189772]
[1617382607342,0.67082398,59180.0,59172.0,0.253391]
[1617382607543,0.67082398,59180.0,59176.0,0.387449]
[1617382607751,0.67082398,59180.0,59179.0,0.189765]
[1617382607945,0.67082398,59180.0,59173.0,0.66]
[1617382608145,0.67082398,59180.0,59173.0,0.814]
[1617382608350,0.67082398,59180.0,59177.0,0.387449]
[1617382608551,0.67082398,59180.0,59179.0,0.189758]
[1617382608745,0.67082398,59180.0,59179.0,0.429758]
[1617382608950,0.67082398,59180.0,59179.0,0.489758]
[1617382609146,0.67082398,59180.0,59179.0,0.589758]
[1617382610173,0.67082398,59180.0,59179.0,0.289758]
[1617382610371,0.67082398,59180.0,59179.0,0.189758]
[1617382611170,0.67082398,59180.0,59173.0,0.4]
[1617382611372,0.67082398,59180.0,59177.0,0.387449]
[1617382611373,0.67482398,59180.0,59177.0,0.387449]
[1617382611576,0.67082398,59180.0,59179.0,2.209758]
[1617382611770,0.67082398,59180.0,59179.0,0.579758]
[1617382611968,0.67082398,59180.0,59179.0,0.429758]
[1617382612210,0.67082398,59180.0,59179.0,0.529758]
[1617382613212,0.67082398,59180.0,59179.0,0.289758]
[1617382614611,0.67082398,59180.0,59179.0,0.1]
[1617382614818,0.67082398,59180.0,59178.0,0.253368]
[1617382615454,0.67082398,59180.0,59171.0,0.32068794]
[1617382615654,0.67082398,59180.0,59173.0,0.164]
[1617382615849,0.67082398,59180.0,59177.0,0.387449]
[1617382616064,0.67082398,59180.0,59173.0,0.164]
[1617382616253,0.67082398,59180.0,59177.0,0.387449]
[1617382616451,0.67082398,59180.0,59173.0,0.164]
[1617382617253,0.67082398,59180.0,59177.0,0.387449]
[1617382617468,0.67082398,59180.0,59179.0,0.189758]
[1617382617871,0.67082398,59180.0,59179.0,0.42852609]
[1617382618467,0.67082398,59180.0,59179.0,0.68189009]
[1617382618669,0.67082398,59180.0,59179.0,1.14689009]
[1617382618867,0.66582398,59180.0,59179.0,1.008122]
[1617382619067,0.66582398,59180.0,59179.0,4.26662565]
[1617382619275,0.66582398,59180.0,59179.0,4.45862565]
[1617382619473,0.66582398,59180.0,59179.0,4.70062565]
[1617382619669,0.66582398,59180.0,59179.0,1.58062565]
[1617382620083,0.66582398,59180.0,59179.0,3.50062565]
[1617382620285,0.66582398,59180.0,59179.0,1.58062565]
[1617382620682,0.66582398,59180.0,59179.0,1.33862565]
[1617382620883,0.66582398,59180.0,59179.0,1.34062565]
[1617382621082,0.66582398,59180.0,59179.0,1.33862565]
[1617382621286,0.66582398,59180.0,59179.0,0.708122]
[1617382621491,0.66582398,59180.0,59179.0,0.742122]
[1617382622486,0.66582398,59180.0,59179.0,0.488758]
[1617382622696,0.66082398,59180.0,59179.0,0.323758]
[1617382624503,0.66082398,59180.0,59179.0,0.223758]
[1617382624699,0.66082398,59180.0,59179.0,0.323758]
[1617382625720,0.66082398,59180.0,59179.0,0.325758]
[1617382625927,0.66082398,59180.0,59179.0,0.323758]
[1617382626120,0.66082398,59180.0,59179.0,0.625758]
[1617382626320,0.66082398,59180.0,59179.0,0.815758]
[1617382626918,0.65582398,59180.0,59179.0,0.815758]
[1617382627121,0.65582398,59180.0,59179.0,1.043095]
[1617382627945,0.65582398,59180.0,59179.0,1.066095]
[1617382628144,0.65582398,59180.0,59179.0,0.766095]
[1617382629550,0.65582398,59180.0,59179.0,0.756095]
[1617382629747,0.65582398,59180.0,59179.0,0.766095]
[1617382629950,0.65582398,59180.0,59179.0,0.44042547]
[1617382630146,0.61582398,59180.0,59179.0,0.44042547]
[1617382630346,0.61582398,59180.0,59179.0,0.43442547]
[1617382630641,0.61582398,59180.0,59179.0,0.86942547]
[1617382630842,0.61582398,59180.0,59179.0,0.87142547]
[1617382631037,0.61582398,59180.0,59179.0,2.15142547]
[1617382631435,0.61582398,59180.0,59179.0,2.26142547]
[1617382631634,0.61582398,59180.0,59179.0,3.43946271]
[1617382631841,0.61582398,59180.0,59179.0,4.61653407]
[1617382632038,0.61582398,59180.0,59179.0,6.93653407]
[1617382632239,0.61582398,59180.0,59179.0,8.03653407]
[1617382632639,0.61582398,59180.0,59179.0,8.56147781]
[1617382633035,0.61582398,59180.0,59179.0,9.06147781]
[1617382633256,0.61582398,59180.0,59179.0,8.26147781]
[1617382633463,0.61582398,59180.0,59179.0,8.51147781]
[1617382633656,0.61582398,59180.0,59179.0,9.73389317]
[1617382634058,0.61582398,59180.0,59179.0,10.23389317]
[1617382634259,0.61582398,59180.0,59179.0,10.28189317]
[1617382634464,0.21482261,59180.0,59179.0,10.33189317]
[1617382634662,0.20408823,59180.0,59179.0,10.33189317]
[1617382634863,0.01,59184.0,59180.0,4.48803724]
[1617382635063,0.01,59184.0,59183.0,5.60568678]
[1617382635261,0.01,59184.0,59183.0,7.56772402]
[1617382635464,0.68586,59184.0,59183.0,8.10972402]
[1617382635661,0.68586,59184.0,59183.0,9.07572402]
[1617382635879,0.68586,59184.0,59183.0,9.14968566]
[1617382636077,0.68586,59184.0,59183.0,9.64968566]
[1617382636277,0.348235,59184.0,59183.0,9.64968566]
[1617382636876,0.348235,59184.0,59183.0,9.53572402]
[1617382637279,0.34907983,59184.0,59183.0,9.53572402]
[1617382637480,0.33273131,59184.0,59183.0,9.53572402]
[1617382637677,0.27426932,59184.0,59183.0,9.53572402]
[1617382638082,0.28180191,59184.0,59183.0,9.57572402]
[1617382638285,0.26368606,59184.0,59183.0,9.58572402]
[1617382638508,15.04101599,59200.0,59185.0,0.35820248]
[1617382638707,15.04101599,59200.0,59199.0,3.712]
[1617382638915,15.04101599,59200.0,59199.0,5.92669]
[1617382639105,15.04101599,59200.0,59199.0,6.71663374]
[1617382639306,15.71669599,59200.0,59199.0,6.71863374]
[1617382639505,15.71669599,59200.0,59199.0,7.54363374]
[1617382639710,15.71669599,59200.0,59199.0,8.48167098]
[1617382639907,15.71669599,59200.0,59199.0,7.54363374]
[1617382640105,15.71669599,59200.0,59199.0,7.79683174]
[1617382640307,15.71669599,59200.0,59199.0,8.10186719]
[1617382640514,15.71669599,59200.0,59199.0,9.03990443]
[1617382640905,15.71169599,59200.0,59199.0,9.03990443]
[1617382641132,15.71169599,59200.0,59199.0,7.45686719]
[1617382641332,15.71169599,59200.0,59199.0,7.39715719]
[1617382641530,15.71169599,59200.0,59199.0,8.33519443]
[1617382641731,15.71169599,59200.0,59199.0,7.67215719]
[1617382642132,15.71169599,59200.0,59199.0,8.91019443]
[1617382642335,15.71169599,59200.0,59199.0,8.22215719]
[1617382642536,15.71169599,59200.0,59199.0,8.48215719]
[1617382642735,15.71169599,59200.0,59199.0,9.42019443]
[1617382643532,15.63669599,59200.0,59199.0,9.42019443]
[1617382643949,15.63669599,59200.0,59199.0,9.49019443]
[1617382644151,15.63669599,59200.0,59199.0,10.96211234]
[1617382644348,15.63169599,59200.0,59199.0,10.96211234]
[1617382644553,15.63169599,59200.0,59199.0,14.48211234]
[1617382644950,15.63169599,59200.0,59199.0,14.98211234]
[1617382645352,15.60632207,59200.0,59199.0,14.98211234]
[1617382645835,15.60632207,59200.0,59199.0,14.0440751]
[1617382646033,15.60632207,59200.0,59199.0,14.98211234]
[1617382646431,15.60632207,59200.0,59199.0,15.53411234]
[1617382646834,15.60632207,59200.0,59199.0,13.80319443]
[1617382647032,15.60272129,59200.0,59199.0,13.80319443]
[1617382647232,15.60272129,59200.0,59199.0,13.30319443]
[1617382647432,15.54326106,59200.0,59199.0,13.30319443]
[1617382648036,15.49288073,59200.0,59199.0,13.55663004]
[1617382648234,15.49288073,59200.0,59199.0,14.17179528]
[1617382648435,15.49288073,59200.0,59199.0,14.55921028]
[1617382648634,15.48788073,59200.0,59199.0,14.55921028]
[1617382649034,15.48788073,59200.0,59199.0,13.62117304]
[1617382649235,15.48788073,59200.0,59199.0,13.44228483]
[1617382649632,15.48788073,59200.0,59199.0,13.08711959]
[1617382650034,15.48788073,59200.0,59199.0,14.02515683]
[1617382650835,15.45909148,59200.0,59199.0,13.20711959]
[1617382651037,15.45909148,59200.0,59199.0,14.14515683]
[1617382651233,15.45909148,59200.0,59199.0,13.20711959]
[1617382651433,15.45909148,59200.0,59199.0,14.14515683]
[1617382651636,15.45909148,59200.0,59199.0,13.20711959]
[1617382651836,15.45909148,59200.0,59199.0,14.14515683]
[1617382652036,15.45909148,59200.0,59199.0,14.26715683]
[1617382652236,15.45909148,59200.0,59199.0,14.76715683]
[1617382652435,15.45909148,59200.0,59199.0,13.82911959]
[1617382652639,15.45909148,59200.0,59199.0,14.76715683]
[1617382653253,15.45909148,59200.0,59199.0,11.20917585]
[1617382653439,15.45909148,59200.0,59199.0,12.60721309]
[1617382653645,15.08211015,59200.0,59199.0,13.94232207]
[1617382653841,14.73976492,59200.0,59199.0,13.58715683]
[1617382654043,14.70740992,59200.0,59199.0,13.18915683]
[1617382654272,14.70240992,59200.0,59199.0,13.18915683]
[1617382654474,14.70240992,59200.0,59199.0,12.12153674]
[1617382654675,14.70240992,59200.0,59199.0,12.51953674]
[1617382654874,14.70240992,59200.0,59199.0,12.89953674]
[1617382655673,14.70240992,59200.0,59199.0,12.85953674]
[1617382655873,14.70240992,59200.0,59199.0,12.89953674]
[1617382656075,14.70240992,59200.0,59199.0,12.82953674]
[1617382656476,14.70240992,59200.0,59199.0,12.86953674]
[1617382656676,14.70240992,59200.0,59199.0,12.82953674]
[1617382657088,14.70240992,59200.0,59199.0,12.86953674]
[1617382657487,14.70240992,59200.0,59199.0,13.01461318]
[1617382658089,14.70240992,59200.0,59199.0,13.04461318]
[1617382658896,14.70240992,59200.0,59199.0,12.54461318]
[1617382659517,14.70240992,59200.0,59199.0,12.39953674]
[1617382659912,14.70240992,59200.0,59199.0,12.35953674]
[1617382660538,14.70240992,59200.0,59199.0,12.32953674]
[1617382660734,14.70240992,59200.0,59199.0,12.36953674]
[1617382660937,14.70240992,59200.0,59199.0,13.36953674]
[1617382661535,14.70240992,59200.0,59199.0,12.93153674]
[1617382662159,14.70240992,59200.0,59199.0,12.97153674]
[1617382662362,14.67740992,59200.0,59199.0,13.36853674]
[1617382663155,14.67740992,59200.0,59199.0,13.35853674]
[1617382663554,14.67740992,59200.0,59199.0,13.39853674]
[1617382664158,14.65240992,59200.0,59199.0,14.75581253]
[1617382664356,14.65240992,59200.0,59199.0,15.2805519]
[1617382664560,14.65240992,59200.0,59199.0,16.21858914]
[1617382664764,14.65240992,59200.0,59199.0,15.2805519]
[1617382664968,14.65240992,59200.0,59199.0,16.37858914]
[1617382665164,14.65240992,59200.0,59199.0,14.90667123]
[1617382665368,14.31489192,59200.0,59199.0,14.32379923]
[1617382665564,13.97737392,59200.0,59199.0,14.32379923]
[1617382665765,13.97737392,59200.0,59199.0,13.54679923]
[1617382666166,13.63985592,59200.0,59199.0,13.54679923]
[1617382667387,13.63985592,59200.0,59199.0,13.43670198]
[1617382667588,13.63985592,59200.0,59199.0,13.03675824]
[1617382667789,13.63985592,59200.0,59199.0,13.43670198]